fUSD/lending_fUSD_20250514
["ID","MTS","AMOUNT","RATE_DAILY","PERIOD"]
[361087456,1747245515890,-1089.969391,0.00010958,2]
[361087457,1747245515917,-1089.969391,0.00010958,2]
[361087458,1747245515943,-1089.969391,0.00010958,2]
[361087459,1747245515967,-400.0,0.00010958,2]
[361087460,1747245515994,-400.0,0.00010958,2]
[361087461,1747245516019,-400.0,0.00010958,2]
[361087462,1747245516043,-161.464077,0.00010958,2]
[361087463,1747245516067,-161.464077,0.00010958,2]
[361087464,1747245516091,-400.0,0.00010958,2]
[361087465,1747245516115,-400.0,0.00010958,2]
[361087466,1747245516139,-491.32,0.00010958,2]
[361087467,1747245516164,-909.68,0.00010958,2]
[361087468,1747245516187,-632.45,0.00010958,2]
[361087469,1747245516212,-400.0,0.00010958,2]
[361087470,1747245516237,-400.0,0.00010958,2]
[361087471,1747245516262,-400.0,0.00010958,2]
[361087472,1747245516285,-400.0,0.00010958,2]
[361087473,1747245516308,-400.0,0.00010958,2]
[361087474,1747245516330,-400.0,0.00010958,2]
[361087475,1747245516353,-400.0,0.00010958,2]
[361087476,1747245516375,-427.98,0.00010958,2]
[361087477,1747245516400,-409.44227,0.00010958,2]
[361087478,1747245516423,-409.44227,0.00010958,2]
[361087479,1747245516446,-400.0,0.00010958,2]
[361087480,1747245516468,-409.44227,0.00010958,2]
[361087481,1747245516491,-413.10114499,0.00010958,2]
[361087482,1747245516514,-400.0,0.00010958,2]
[361087483,1747245516537,-409.44227,0.00010958,2]
[361087484,1747245516560,-400.0,0.00010958,2]
[361087485,1747245516583,-409.44227,0.00010958,2]
[361087486,1747245516606,-409.44227,0.00010958,2]
[361087487,1747245516628,-205.13,0.00010958,2]
[361087488,1747245516651,-400.0,0.00010958,2]
[361087489,1747245516673,-400.0,0.00010958,2]
[361087490,1747245516695,-504.41,0.00010958,2]
[361087491,1747245516719,-230.78592027,0.00010958,2]
[361087492,1747245595239,-450.0,0.0001,2]
[361087493,1747245595264,-2374.97,0.00010135,2]
[361087494,1747245595288,-598.33593639,0.00010858,2]
[361087495,1747245595310,-1598.7898,0.00010858,2]
[361087496,1747245595333,-2272.965,0.00010957,2]
[361087497,1747245595356,-179.44407973,0.00010958,2]
[361087498,1747245595378,-151.0,0.00010958,2]
[361087499,1747245595401,-151.0,0.00010958,2]
[361087500,1747245595423,-151.0,0.00010958,2]
[361087501,1747245595447,-400.0,0.00010958,2]
[361087502,1747245595469,-400.0,0.00010958,2]
[361087503,1747245595491,-502.26,0.00010958,2]
[361087504,1747245595514,-3433.3,0.00010958,2]
[361087505,1747245595536,-400.0,0.00010958,2]
[361087506,1747245595558,-400.0,0.00010958,2]
[361087507,1747245595584,-400.0,0.00010958,2]
[361087508,1747245595871,-400.0,0.00010958,2]
[361087509,1747245595896,-400.0,0.00010958,2]
[361087510,1747245595919,-400.0,0.00010958,2]
[361087511,1747245595942,-888.96,0.00010958,2]
[361087512,1747245595965,-400.0,0.00010958,2]
[361087513,1747245595998,-425.08,0.00010958,2]
[361087514,1747245596027,-924.82,0.00010958,2]
[361087515,1747245596052,-400.0,0.00010958,2]
[361087516,1747245596076,-464.26,0.00010958,2]
[361087517,1747245596101,-252.1,0.00010958,2]
[361087518,1747245596126,-400.0,0.00010958,2]
[361087519,1747245596152,-955.99,0.00010958,2]
[361087520,1747245596177,-400.0,0.00010958,2]
[361087521,1747245596202,-400.0,0.00010958,2]
[361087522,1747245596226,-400.0,0.00010958,2]
[361087523,1747245596250,-242.43426827,0.00010958,2]
[361087524,1747245596273,-521.00836417,0.00010958,2]
[361087525,1747245596298,-1065.826707,0.00010958,2]
[361087526,1747245596321,-1065.826707,0.00010958,2]
[361087527,1747245596344,-400.0,0.00010958,2]
[361087528,1747245596375,-1065.826707,0.00010958,2]
[361087529,1747245596401,-151.0,0.00010958,2]
[361087530,1747245596425,-151.0,0.00010958,2]
[361087531,1747245596450,-151.0,0.00010958,2]
[361087532,1747245596474,-1065.826707,0.00010958,2]
[361087533,1747245596498,-496.35,0.00010958,2]
[361087534,1747245596522,-1065.826707,0.00010958,2]
[361087535,1747245596546,-2540.18,0.00010958,2]
[361087536,1747245596571,-1065.826707,0.00010958,2]
[361087537,1747245596595,-151.0,0.00010958,2]
[361087538,1747245596619,-192.054812,0.00010958,2]
[361087539,1747245596643,-414.85650722,0.00010958,2]
[361087540,1747245596668,-947.39,0.00010958,2]
[361087541,1747245596692,-400.0,0.00010958,2]
[361087542,1747245596717,-400.0,0.00010958,2]
[361087543,1747245596740,-400.0,0.00010958,2]
[361087544,1747245596763,-400.0,0.00010958,2]
[361087545,1747245596786,-151.0,0.00010958,2]
[361087546,1747245596810,-490.57415066,0.00010958,2]
[361087547,1747245596832,-151.0,0.00010958,2]
[361087548,1747245596864,-151.0,0.00010958,2]
[361087549,1747245596887,-400.0,0.00010958,2]
[361087550,1747245596911,-400.0,0.00010958,2]
[361087551,1747245596935,-151.0,0.00010958,2]
[361087552,1747245596959,-400.0,0.00010958,2]
[361087553,1747245596983,-151.0,0.00010958,2]
[361087554,1747245597006,-151.0,0.00010958,2]
[361087555,1747245597029,-151.0,0.00010958,2]
[361087556,1747245597052,-151.0,0.00010958,2]
[361087557,1747245597076,-151.0,0.00010958,2]
[361087558,1747245597100,-151.0,0.00010958,2]
[361087559,1747245597123,-400.0,0.00010958,2]
[361087560,1747245597150,-151.0,0.00010958,2]
[361087561,1747245597174,-151.0,0.00010958,2]
[361087562,1747245597197,-400.0,0.00010958,2]
[361087563,1747245597221,-400.0,0.00010958,2]
[361087564,1747245597245,-400.0,0.00010958,2]
[361087565,1747245597268,-400.0,0.00010958,2]
[361087566,1747245597290,-151.0,0.00010958,2]
[361087567,1747245597314,-151.0,0.00010958,2]
[361087568,1747245597337,-400.0,0.00010958,2]
[361087569,1747245597360,-151.0,0.00010958,2]
[361087570,1747245597383,-401.03085462,0.00010958,2]
[361087571,1747245597407,-400.0,0.00010958,2]
[361087572,1747245597431,-1888.01,0.00010958,2]
[361087573,1747245597455,-400.0,0.00010958,2]
[361087574,1747245597479,-400.0,0.00010958,2]
[361087575,1747245597504,-483.11,0.00010958,2]
[361087576,1747245597527,-400.0,0.00010958,2]
[361087577,1747245597551,-460.39,0.00010958,2]
[361087578,1747245597576,-462.14088801,0.00010958,2]
[361087579,1747245597599,-400.0,0.00010958,2]
[361087580,1747245597623,-648.01,0.00010958,2]
[361087581,1747245597647,-400.0,0.00010958,2]
[361087582,1747245597671,-400.0,0.00010958,2]
[361087583,1747245597694,-400.0,0.00010958,2]
[361087584,1747245597717,-403.38852268,0.00010958,2]
[361087585,1747245597750,-400.0,0.00010958,2]
[361087586,1747245597778,-400.0,0.00010958,2]
[361087587,1747245597803,-400.0,0.00010958,2]
[361087588,1747245597829,-400.0,0.00010958,2]
[361087589,1747245597853,-400.0,0.00010958,2]
[361087590,1747245597877,-400.0,0.00010958,2]
[361087591,1747245597901,-400.0,0.00010958,2]
[361087592,1747245597926,-400.0,0.00010958,2]
[361087593,1747245597951,-400.0,0.00010958,2]
[361087594,1747245597978,-151.0,0.00010958,2]
[361087595,1747245598005,-151.0,0.00010958,2]
[361087596,1747245598031,-400.0,0.00010958,2]
[361087597,1747245598056,-400.0,0.00010958,2]
[361087598,1747245598079,-400.0,0.00010958,2]
[361087599,1747245598104,-400.0,0.00010958,2]
[361087600,1747245598128,-151.0,0.00010958,2]
[361087601,1747245598152,-151.0,0.00010958,2]
[361087602,1747245598177,-400.0,0.00010958,2]
[361087603,1747245598202,-400.0,0.00010958,2]
[361087604,1747245598226,-400.0,0.00010958,2]
[361087605,1747245598252,-400.0,0.00010958,2]
[361087606,1747245598276,-400.0,0.00010958,2]
[361087607,1747245598300,-400.0,0.00010958,2]
[361087608,1747245598324,-162.15912802,0.00010958,2]
[361087609,1747245598349,-400.0,0.00010958,2]
[361087610,1747245598376,-198.871771,0.00010958,2]
[361087611,1747245598399,-400.0,0.00010958,2]
[361087612,1747245598424,-151.0,0.00010958,2]
[361087613,1747245598448,-491.61,0.00010958,2]
[361087614,1747245598472,-151.0,0.00010958,2]
[361087615,1747245598494,-151.0,0.00010958,2]
[361087616,1747245598519,-400.0,0.00010958,2]
[361087617,1747245598542,-403.28336099,0.00010958,2]
[361087618,1747245598565,-198.871771,0.00010958,2]
[361087619,1747245598594,-400.0,0.00010958,2]
[361087620,1747245598618,-400.0,0.00010958,2]
[361087621,1747245598641,-400.0,0.00010958,2]
[361087622,1747245598665,-400.0,0.00010958,2]
[361087623,1747245598688,-410.11835575,0.00010958,2]
[361087624,1747245598713,-400.0,0.00010958,2]
[361087625,1747245598967,-400.0,0.00010958,2]
[361087626,1747245598990,-403.93119571,0.00010958,2]
[361087627,1747245599016,-466.25,0.00010958,2]
[361087628,1747245599039,-400.0,0.00010958,2]
[361087629,1747245599062,-400.0,0.00010958,2]
[361087630,1747245599084,-403.21284557,0.00010958,2]
[361087631,1747245599107,-400.0,0.00010958,2]
[361087632,1747245599130,-400.0,0.00010958,2]
[361087633,1747245599155,-400.0,0.00010958,2]
[361087634,1747245599179,-550.46,0.00010958,2]
[361087635,1747245599203,-400.0,0.00010958,2]
[361087636,1747245599226,-400.0,0.00010958,2]
[361087637,1747245599249,-400.0,0.00010958,2]
[361087638,1747245599272,-494.88,0.00010958,2]
[361087639,1747245599295,-400.0,0.00010958,2]
[361087640,1747245599319,-400.0,0.00010958,2]
[361087641,1747245599343,-672.4,0.00010958,2]
[361087642,1747245599365,-430.43,0.00010958,2]
[361087643,1747245599387,-404.34923082,0.00010958,2]
[361087644,1747245599409,-400.0,0.00010958,2]
[361087645,1747245599432,-572.84,0.00010958,2]
[361087646,1747245599454,-151.0,0.00010958,2]
[361087647,1747245599476,-151.0,0.00010958,2]
[361087648,1747245599500,-151.0,0.00010958,2]
[361087649,1747245599524,-400.0,0.00010958,2]
[361087650,1747245599545,-400.0,0.00010958,2]
[361087651,1747245599567,-400.0,0.00010958,2]
[361087652,1747245599590,-400.0,0.00010958,2]
[361087653,1747245599612,-400.0,0.00010958,2]
[361087654,1747245599634,-400.0,0.00010958,2]
[361087655,1747245599657,-400.0,0.00010958,2]
[361087656,1747245599678,-470.65,0.00010958,2]
[361087657,1747245599700,-400.0,0.00010958,2]
[361087658,1747245599723,-511.69,0.00010958,2]
[361087659,1747245599745,-400.0,0.00010958,2]
[361087660,1747245599768,-400.0,0.00010958,2]
[361087661,1747245599790,-563.02,0.00010958,2]
[361087662,1747245599812,-400.0,0.00010958,2]
[361087663,1747245599835,-880.17,0.00010958,2]
[361087664,1747245599858,-400.0,0.00010958,2]
[361087665,1747245599882,-400.0,0.00010958,2]
[361087666,1747245599905,-400.0,0.00010958,2]
[361087667,1747245599929,-400.0,0.00010958,2]
[361087668,1747245599953,-400.0,0.00010958,2]
[361087669,1747245599977,-400.0,0.00010958,2]
[361087670,1747245600000,-400.0,0.00010958,2]
[361087671,1747245600025,-400.0,0.00010958,2]
[361087672,1747245600048,-400.0,0.00010958,2]
[361087673,1747245600071,-523.02146016,0.00010958,2]
[361087674,1747245600094,-400.0,0.00010958,2]
[361087675,1747245600117,-531.4,0.00010958,2]
[361087676,1747245600142,-400.0,0.00010958,2]
[361087677,1747245600166,-151.0,0.00010958,2]
[361087678,1747245600191,-151.0,0.00010958,2]
[361087679,1747245600214,-151.0,0.00010958,2]
[361087680,1747245600239,-659.08,0.00010958,2]
[361087681,1747245600263,-565.23,0.00010958,2]
[361087682,1747245600288,-400.0,0.00010958,2]
[361087683,1747245600312,-400.0,0.00010958,2]
[361087684,1747245600337,-400.0,0.00010958,2]
[361087685,1747245600361,-400.0,0.00010958,2]
[361087686,1747245600386,-400.0,0.00010958,2]
[361087687,1747245600411,-400.0,0.00010958,2]
[361087688,1747245600435,-1188.79,0.00010958,2]
[361087689,1747245600458,-400.0,0.00010958,2]
[361087690,1747245600482,-400.0,0.00010958,2]
[361087691,1747245600506,-400.0,0.00010958,2]
[361087692,1747245600531,-400.0,0.00010958,2]
[361087693,1747245600555,-400.0,0.00010958,2]
[361087694,1747245600580,-400.0,0.00010958,2]
[361087695,1747245600602,-151.0,0.00010958,2]
[361087696,1747245600627,-151.0,0.00010958,2]
[361087697,1747245600650,-456.2,0.00010958,2]
[361087698,1747245600673,-151.0,0.00010958,2]
[361087699,1747245600697,-200.0,0.00010958,2]
[361087700,1747245600719,-487.667577,0.00010958,2]
[361087701,1747245600743,-400.0,0.00010958,2]
[361087702,1747245600767,-400.0,0.00010958,2]
[361087703,1747245600790,-541.67,0.00010958,2]
[361087704,1747245600812,-151.0,0.00010958,2]
[361087705,1747245600835,-400.0,0.00010958,2]
[361087706,1747245600858,-151.0,0.00010958,2]
[361087707,1747245600881,-151.0,0.00010958,2]
[361087708,1747245600904,-487.667577,0.00010958,2]
[361087709,1747245600926,-168.98362,0.00010958,2]
[361087710,1747245600949,-513.73,0.00010958,2]
[361087711,1747245600973,-400.0,0.00010958,2]
[361087712,1747245600996,-400.0,0.00010958,2]
[361087713,1747245601020,-400.0,0.00010958,2]
[361087714,1747245601043,-400.0,0.00010958,2]
[361087715,1747245601065,-400.0,0.00010958,2]
[361087716,1747245601088,-400.0,0.00010958,2]
[361087717,1747245601111,-151.0,0.00010958,2]
[361087718,1747245601134,-203.744574,0.00010958,2]
[361087719,1747245601157,-203.744574,0.00010958,2]
[361087720,1747245601179,-217.42763076,0.00010958,2]
[361087721,1747245601202,-11397.05,0.00010958,2]
[361087722,1747245601226,-203.744574,0.00010958,2]
[361087723,1747245601250,-579.16,0.00010958,2]
[361087724,1747245601276,-400.0,0.00010958,2]
[361087725,1747245601303,-500.0,0.00010958,2]
[361087726,1747245601332,-203.744574,0.00010958,2]
[361087727,1747245601363,-203.744574,0.00010958,2]
[361087728,1747245601393,-203.744574,0.00010958,2]
[361087729,1747245601421,-400.0,0.00010958,2]
[361087730,1747245601447,-400.0,0.00010958,2]
[361087731,1747245601473,-503.57,0.00010958,2]
[361087732,1747245601498,-452.01783252,0.00010958,2]
[361087733,1747245601523,-3417.796533,0.00010958,2]
[361087734,1747245601547,-475.55,0.00010958,2]
[361087735,1747245601571,-3417.796533,0.00010958,2]
[361087736,1747245601594,-400.0,0.00010958,2]
[361087737,1747245601617,-1169.33,0.00010958,2]
[361087738,1747245601642,-3417.796533,0.00010958,2]
[361087739,1747245601664,-402.54369734,0.00010958,2]
[361087740,1747245601688,-169.002842,0.00010958,2]
[361087741,1747245601712,-400.0,0.00010958,2]
[361087742,1747245601737,-8700.82,0.00010958,2]
[361087743,1747245602014,-400.0,0.00010958,2]
[361087744,1747245602040,-500.0,0.00010958,2]
[361087745,1747245602066,-400.0,0.00010958,2]
[361087746,1747245602090,-400.0,0.00010958,2]
[361087747,1747245602113,-400.0,0.00010958,2]
[361087748,1747245602136,-400.0,0.00010958,2]
[361087749,1747245602159,-320.08614335,0.00010958,2]
[361087750,1747245602182,-400.0,0.00010958,2]
[361087751,1747245602205,-2160.62,0.00010958,2]
[361087752,1747245602231,-1047.79,0.00010958,2]
[361087753,1747245602255,-400.0,0.00010958,2]
[361087754,1747245602278,-484.18,0.00010958,2]
[361087755,1747245602300,-456.76,0.00010958,2]
[361087756,1747245602324,-400.0,0.00010958,2]
[361087757,1747245602347,-151.0,0.00010958,2]
[361087758,1747245602370,-173.144987,0.00010958,2]
[361087759,1747245602393,-400.0,0.00010958,2]
[361087760,1747245602417,-400.0,0.00010958,2]
[361087761,1747245602441,-4814.6,0.00010958,2]
[361087762,1747245602466,-400.0,0.00010958,2]
[361087763,1747245602490,-1245.35,0.00010958,2]
[361087764,1747245602512,-151.925941,0.00010958,2]
[361087765,1747245602535,-400.0,0.00010958,2]
[361087766,1747245602565,-400.0,0.00010958,2]
[361087767,1747245602601,-400.0,0.00010958,2]
[361087768,1747245602626,-2926.05,0.00010958,2]
[361087769,1747245602649,-408.78,0.00010958,2]
[361087770,1747245602672,-404.08925243,0.00010958,2]
[361087771,1747245602695,-296.61744962,0.00010958,2]
[361087772,1747245602717,-2020.08,0.00010958,2]
[361087773,1747245602744,-400.0,0.00010958,2]
[361087774,1747245602769,-460.6,0.00010958,2]
[361087775,1747245602793,-400.0,0.00010958,2]
[361087776,1747245602816,-394.68,0.00010958,2]
[361087777,1747245602840,-883.88,0.00010958,2]
[361087778,1747245602864,-400.0,0.00010958,2]
[361087779,1747245602888,-400.0,0.00010958,2]
[361087780,1747245602910,-3037.35,0.00010958,2]
[361087781,1747245602934,-400.0,0.00010958,2]
[361087782,1747245602957,-400.0,0.00010958,2]
[361087783,1747245602982,-509.12,0.00010958,2]
[361087784,1747245603005,-567.979146,0.00010958,2]
[361087785,1747245603029,-567.979146,0.00010958,2]
[361087786,1747245603054,-400.0,0.00010958,2]
[361087787,1747245603079,-567.979146,0.00010958,2]
[361087788,1747245603103,-151.0,0.00010958,2]
[361087789,1747245603127,-1176.44,0.00010958,2]
[361087790,1747245603151,-151.0,0.00010958,2]
[361087791,1747245603176,-213.566755,0.00010958,2]
[361087792,1747245603202,-1162.86,0.00010958,2]
[361087793,1747245603228,-567.979146,0.00010958,2]
[361087794,1747245603255,-400.0,0.00010958,2]
[361087795,1747245603285,-567.979146,0.00010958,2]
[361087796,1747245603315,-400.0,0.00010958,2]
[361087797,1747245603344,-567.979146,0.00010958,2]
[361087798,1747245603371,-400.0,0.00010958,2]
[361087799,1747245603397,-500.0,0.00010958,2]
[361087800,1747245603423,-620.03,0.00010958,2]
[361087801,1747245603450,-486.39,0.00010958,2]
[361087802,1747245603477,-400.0,0.00010958,2]
[361087803,1747245603503,-490.89705602,0.00010958,2]
[361087804,1747245603529,-1989.970013,0.00010958,2]
[361087805,1747245603553,-1989.970013,0.00010958,2]
[361087806,1747245603580,-7186.8,0.00010958,2]
[361087807,1747245603605,-1989.970013,0.00010958,2]
[361087808,1747245603629,-400.0,0.00010958,2]
[361087809,1747245603654,-151.0,0.00010958,2]
[361087810,1747245603679,-826.12,0.00010958,2]
[361087811,1747245603703,-151.0,0.00010958,2]
[361087812,1747245603728,-161.226796,0.00010958,2]
[361087813,1747245603752,-161.226796,0.00010958,2]
[361087814,1747245603778,-1989.970013,0.00010958,2]
[361087815,1747245603803,-161.226796,0.00010958,2]
[361087816,1747245603828,-400.0,0.00010958,2]
[361087817,1747245603853,-1989.970013,0.00010958,2]
[361087818,1747245603879,-1989.970013,0.00010958,2]
[361087819,1747245603904,-400.0,0.00010958,2]
[361087820,1747245603928,-400.0,0.00010958,2]
[361087821,1747245603953,-400.0,0.00010958,2]
[361087822,1747245603980,-161.226796,0.00010958,2]
[361087823,1747245604004,-161.226796,0.00010958,2]
[361087824,1747245604030,-161.226796,0.00010958,2]
[361087825,1747245604055,-400.0,0.00010958,2]
[361087826,1747245604079,-400.0,0.00010958,2]
[361087827,1747245604104,-400.0,0.00010958,2]
[361087828,1747245604128,-744.09,0.00010958,2]
[361087829,1747245604153,-1635.21,0.00010958,2]
[361087830,1747245604177,-400.0,0.00010958,2]
[361087831,1747245604202,-400.0,0.00010958,2]
[361087832,1747245604230,-607.96,0.00010958,2]
[361087833,1747245604255,-400.0,0.00010958,2]
[361087834,1747245604281,-400.0,0.00010958,2]
[361087835,1747245604308,-568.57,0.00010958,2]
[361087836,1747245604332,-6600.89,0.00010958,2]
[361087837,1747245604357,-400.0,0.00010958,2]
[361087838,1747245604383,-400.0,0.00010958,2]
[361087839,1747245604409,-583.67,0.00010958,2]
[361087840,1747245604435,-652.98,0.00010958,2]
[361087841,1747245604460,-434.45,0.00010958,2]
[361087842,1747245604488,-5332.05,0.00010958,2]
[361087843,1747245604514,-598.08,0.00010958,2]
[361087844,1747245604539,-16329.37,0.00010958,2]
[361087845,1747245604564,-1422.13,0.00010958,2]
[361087846,1747245604593,-400.0,0.00010958,2]
[361087847,1747245604623,-895.11,0.00010958,2]
[361087848,1747245604651,-895.11,0.00010958,2]
[361087849,1747245604678,-400.0,0.00010958,2]
[361087850,1747245604702,-494.87,0.00010958,2]
[361087851,1747245604727,-400.0,0.00010958,2]
[361087852,1747245604753,-400.0,0.00010958,2]
[361087853,1747245604776,-475.84912591,0.00010958,2]
[361087854,1747245604800,-400.0,0.00010958,2]
[361087855,1747245604823,-400.0,0.00010958,2]
[361087856,1747245604847,-400.0,0.00010958,2]
[361087857,1747245604870,-400.0,0.00010958,2]
[361087858,1747245604893,-574.86,0.00010958,2]
[361087859,1747245604918,-722.16,0.00010958,2]
[361087860,1747245604941,-151.0,0.00010958,2]
[361087861,1747245605190,-151.0,0.00010958,2]
[361087862,1747245605215,-151.0,0.00010958,2]
[361087863,1747245605242,-400.0,0.00010958,2]
[361087864,1747245605267,-400.0,0.00010958,2]
[361087865,1747245605293,-405.30368403,0.00010958,2]
[361087866,1747245605317,-400.0,0.00010958,2]
[361087867,1747245605341,-400.0,0.00010958,2]
[361087868,1747245605365,-400.0,0.00010958,2]
[361087869,1747245605387,-151.0,0.00010958,2]
[361087870,1747245605411,-271.680732,0.00010958,2]
[361087871,1747245605435,-400.0,0.00010958,2]
[361087872,1747245605459,-3380.03,0.00010958,2]
[361087873,1747245605485,-969.74,0.00010958,2]
[361087874,1747245605511,-1311.19,0.00010958,2]
[361087875,1747245605535,-400.0,0.00010958,2]
[361087876,1747245605559,-1124.1,0.00010958,2]
[361087877,1747245605587,-151.0,0.00010958,2]
[361087878,1747245605611,-151.0,0.00010958,2]
[361087879,1747245605636,-4478.91,0.00010958,2]
[361087880,1747245605659,-400.0,0.00010958,2]
[361087881,1747245605682,-151.0,0.00010958,2]
[361087882,1747245605705,-400.0,0.00010958,2]
[361087883,1747245605729,-400.0,0.00010958,2]
[361087884,1747245605753,-400.0,0.00010958,2]
[361087885,1747245605776,-400.0,0.00010958,2]
[361087886,1747245605800,-400.0,0.00010958,2]
[361087887,1747245605824,-457.71,0.00010958,2]
[361087888,1747245605848,-1647.22,0.00010958,2]
[361087889,1747245605872,-591.92,0.00010958,2]
[361087890,1747245605898,-20061.48,0.00010958,2]
[361087891,1747245605922,-400.0,0.00010958,2]
[361087892,1747245605946,-1972.78,0.00010958,2]
[361087893,1747245605968,-151.0,0.00010958,2]
[361087894,1747245605993,-152.080869,0.00010958,2]
[361087895,1747245606019,-400.0,0.00010958,2]
[361087896,1747245606044,-400.0,0.00010958,2]
[361087897,1747245606068,-987.6,0.00010958,2]
[361087898,1747245606092,-1000.0,0.00010958,2]
[361087899,1747245606116,-482.807626,0.00010958,2]
[361087900,1747245606139,-482.807626,0.00010958,2]
[361087901,1747245606163,-677.91,0.00010958,2]
[361087902,1747245606185,-482.807626,0.00010958,2]
[361087903,1747245606208,-482.807626,0.00010958,2]
[361087904,1747245606232,-400.0,0.00010958,2]
[361087905,1747245606255,-400.0,0.00010958,2]
[361087906,1747245606278,-400.0,0.00010958,2]
[361087907,1747245606301,-400.0,0.00010958,2]
[361087908,1747245606325,-482.807626,0.00010958,2]
[361087909,1747245606349,-151.0,0.00010958,2]
[361087910,1747245606373,-482.807626,0.00010958,2]
[361087911,1747245606398,-1150.69,0.00010958,2]
[361087912,1747245606423,-748.27,0.00010958,2]
[361087913,1747245606448,-482.807626,0.00010958,2]
[361087914,1747245606472,-482.807626,0.00010958,2]
[361087915,1747245606497,-400.0,0.00010958,2]
[361087916,1747245606521,-1116.53,0.00010958,2]
[361087917,1747245606545,-156.43647503,0.00010958,2]
[361087918,1747245606569,-400.0,0.00010958,2]
[361087919,1747245606598,-1257.09,0.00010958,2]
[361087920,1747245606623,-151.0,0.00010958,2]
[361087921,1747245606647,-689.87,0.00010958,2]
[361087922,1747245606672,-151.0,0.00010958,2]
[361087923,1747245606696,-400.0,0.00010958,2]
[361087924,1747245606720,-400.0,0.00010958,2]
[361087925,1747245606744,-152.656235,0.00010958,2]
[361087926,1747245606768,-400.0,0.00010958,2]
[361087927,1747245606791,-456.13003573,0.00010958,2]
[361087928,1747245606813,-400.0,0.00010958,2]
[361087929,1747245606837,-400.0,0.00010958,2]
[361087930,1747245606859,-444.85,0.00010958,2]
[361087931,1747245606882,-1024.62,0.00010958,2]
[361087932,1747245606907,-151.0,0.00010958,2]
[361087933,1747245606930,-1870.94,0.00010958,2]
[361087934,1747245606953,-151.0,0.00010958,2]
[361087935,1747245606977,-151.0,0.00010958,2]
[361087936,1747245607001,-400.0,0.00010958,2]
[361087937,1747245607027,-400.0,0.00010958,2]
[361087938,1747245607052,-405.44,0.00010958,2]
[361087939,1747245607076,-400.0,0.00010958,2]
[361087940,1747245607099,-400.0,0.00010958,2]
[361087941,1747245607122,-18337.97,0.00010958,2]
[361087942,1747245607145,-400.0,0.00010958,2]
[361087943,1747245607167,-400.0,0.00010958,2]
[361087944,1747245607191,-4970.5,0.00010958,2]
[361087945,1747245607215,-151.0,0.00010958,2]
[361087946,1747245607239,-151.0,0.00010958,2]
[361087947,1747245607264,-151.0,0.00010958,2]
[361087948,1747245607288,-400.0,0.00010958,2]
[361087949,1747245607312,-151.0,0.00010958,2]
[361087950,1747245607338,-1131.79,0.00010958,2]
[361087951,1747245607363,-720.49,0.00010958,2]
[361087952,1747245607387,-400.0,0.00010958,2]
[361087953,1747245607412,-400.0,0.00010958,2]
[361087954,1747245607437,-151.0,0.00010958,2]
[361087955,1747245607461,-1376.39,0.00010958,2]